fUST/lending_fUST_20250115
["ID","MTS","AMOUNT","RATE_DAILY","PERIOD"]
[349054313,1736955035490,-500.0,0.00019315,3]
[349054314,1736955035499,-500.0,0.00019315,3]
[349054315,1736955035508,-500.0,0.00019373,2]
[349054316,1736955035518,-500.0,0.00019373,2]
[349054317,1736955035528,-500.0,0.00019373,2]
[349054318,1736955035537,-3637.11,0.0001945,3]
[349054319,1736955035546,-500.0,0.00019451,3]
[349054320,1736955035556,-500.0,0.00019451,3]
[349054321,1736955035567,-500.0,0.00019451,3]
[349054322,1736955035576,-500.0,0.00019451,3]
[349054323,1736955035585,-500.0,0.00019451,3]
[349054324,1736955035668,-500.0,0.00019451,3]
[349054325,1736955035678,-500.0,0.00019451,3]
[349054326,1736955035688,-482.1202009,0.00019451,3]
[349054327,1736955035699,-3637.11,0.00019451,3]
[349054328,1736955035710,-3637.11,0.00019451,3]
[349054329,1736955035721,-3637.11,0.00019451,3]
[349054330,1736955035731,-500.0,0.00019452,3]
[349054331,1736955035741,-500.0,0.00019452,3]
[349054332,1736955035751,-500.0,0.00019452,3]
[349054333,1736955035761,-500.0,0.00019452,3]
[349054334,1736955035771,-500.0,0.00019452,3]
[349054335,1736955035782,-500.0,0.00019452,3]
[349054336,1736955035793,-155.18,0.00019452,3]
[349054337,1736955035803,-440.64,0.00019452,3]
[349054338,1736955035814,-500.0,0.00019452,3]
[349054339,1736955035824,-526.65430389,0.00019452,3]
[349054340,1736955035834,-500.0,0.00019452,3]
[349054341,1736955035843,-500.0,0.00019452,3]
[349054342,1736955035853,-500.0,0.00019452,3]
[349054343,1736955035862,-500.0,0.00019452,3]
[349054344,1736955035874,-500.0,0.00019452,3]
[349054345,1736955035885,-500.0,0.00019452,3]
[349054346,1736955035895,-500.0,0.00019452,3]
[349054347,1736955035917,-500.0,0.00019452,3]
[349054348,1736955035928,-500.0,0.00019452,3]
[349054349,1736955035938,-500.0,0.00019452,3]
[349054350,1736955035948,-500.0,0.00019452,3]
[349054351,1736955035959,-253.22032375,0.00019452,3]
[349054352,1736955035970,-500.0,0.00019452,3]
[349054353,1736955035980,-500.0,0.00019452,3]
[349054354,1736955035990,-500.0,0.00019452,3]
[349054355,1736955036000,-500.0,0.00019452,3]
[349054356,1736955036009,-500.0,0.00019452,3]
[349054357,1736955036019,-500.0,0.00019452,3]
[349054358,1736955036029,-500.0,0.00019452,3]
[349054359,1736955036039,-500.0,0.00019452,3]
[349054360,1736955036049,-500.0,0.00019452,3]
[349054361,1736955036059,-7087.47,0.00019452,3]
[349054362,1736955036068,-500.0,0.00019452,3]
[349054363,1736955036078,-500.0,0.00019452,3]
[349054364,1736955036087,-500.0,0.00019452,3]
[349054365,1736955036096,-500.0,0.00019452,3]
[349054366,1736955036105,-500.0,0.00019452,3]
[349054367,1736955036115,-591.45,0.00019452,3]
[349054368,1736955036124,-500.0,0.00019452,3]
[349054369,1736955036134,-445.8,0.00019452,3]
[349054370,1736955036143,-500.0,0.00019452,3]
[349054371,1736955036158,-500.0,0.00019452,3]
[349054372,1736955036167,-500.0,0.00019452,3]
[349054373,1736955036178,-500.0,0.00019452,3]
[349054374,1736955036188,-500.0,0.00019452,3]
[349054375,1736955036197,-267.36,0.00019452,2]
[349054376,1736955036207,-452.49,0.00019452,3]
[349054377,1736955036216,-708.09,0.00019452,3]
[349054378,1736955036226,-1287.03,0.00019452,3]
[349054379,1736955036236,-500.0,0.00019452,3]
[349054380,1736955036246,-1050.48,0.00019452,3]
[349054381,1736955036255,-500.0,0.00019452,3]
[349054382,1736955036265,-500.0,0.00019452,3]
[349054383,1736955036275,-500.0,0.00019452,3]
[349054384,1736955036286,-630.22,0.00019452,3]
[349054385,1736955036296,-500.0,0.00019452,3]
[349054386,1736955036306,-500.0,0.00019452,3]
[349054387,1736955036316,-500.0,0.00019452,3]
[349054388,1736955036327,-500.0,0.00019452,3]
[349054389,1736955036339,-500.0,0.00019452,3]
[349054390,1736955036351,-542.89325804,0.00019452,3]
[349054391,1736955036361,-500.0,0.00019452,3]
[349054392,1736955036372,-466.351358,0.00019452,3]
[349054393,1736955036383,-1811.3,0.00019452,3]
[349054394,1736955036394,-1354.01,0.00019452,3]
[349054395,1736955036414,-500.0,0.00019452,3]
[349054396,1736955036430,-500.0,0.00019452,3]
[349054397,1736955036441,-500.0,0.00019452,3]
[349054398,1736955036452,-500.0,0.00019452,3]
[349054399,1736955036463,-500.0,0.00019452,3]
[349054400,1736955036474,-552.23,0.00019452,3]
[349054401,1736955036487,-500.0,0.00019452,3]
[349054402,1736955036498,-500.0,0.00019452,3]
[349054403,1736955036509,-9443.06,0.00019452,3]
[349054404,1736955036520,-500.0,0.00019452,3]
[349054405,1736955036531,-500.0,0.00019452,3]
[349054406,1736955036541,-500.0,0.00019452,3]
[349054407,1736955036552,-500.0,0.00019452,3]
[349054408,1736955036564,-500.0,0.00019452,3]
[349054409,1736955036579,-649.74,0.00019452,3]
[349054410,1736955036595,-500.0,0.00019452,3]
[349054411,1736955036610,-500.0,0.00019452,3]
[349054412,1736955036622,-500.0,0.00019452,3]
[349054413,1736955036633,-500.0,0.00019473,2]
[349054414,1736955036648,-343.87813782,0.00019473,2]
[349054415,1736955036667,-501.288916,0.00019473,2]
[349054416,1736955036681,-3637.11,0.00019587,3]
[349054417,1736955036696,-3637.11,0.00019588,3]
[349054418,1736955036711,-3637.11,0.00019588,3]
[349054419,1736955036725,-3637.11,0.00019588,3]
[349054420,1736955036739,-3637.11,0.00019588,3]
[349054421,1736955036752,-3637.11,0.00019588,3]
[349054422,1736955036765,-3637.19186883,0.00019588,3]
[349054423,1736955036777,-500.0,0.00019589,3]
[349054424,1736955036791,-500.0,0.00019589,3]
[349054425,1736955036806,-500.0,0.00019589,3]
[349054426,1736955036821,-169.24,0.00019589,3]
[349054427,1736955036834,-500.0,0.00019589,3]
[349054428,1736955036846,-500.0,0.00019589,3]
[349054429,1736955036857,-500.0,0.00019589,3]
[349054430,1736955036870,-500.0,0.00019589,3]
[349054431,1736955036883,-500.0,0.00019589,3]
[349054432,1736955036897,-500.0,0.00019589,3]
[349054433,1736955036916,-500.0,0.00019589,3]
[349054434,1736955036930,-500.0,0.00019589,3]
[349054435,1736955036945,-500.0,0.00019589,3]
[349054436,1736955036961,-500.0,0.00019589,3]
[349054437,1736955036977,-500.0,0.00019589,3]
[349054438,1736955036992,-500.0,0.00019589,3]
[349054439,1736955037004,-500.0,0.00019589,3]
[349054440,1736955037016,-500.0,0.00019589,3]
[349054441,1736955037029,-500.0,0.00019589,3]
[349054442,1736955037043,-7087.47,0.00019589,3]
[349054443,1736955037057,-527.05,0.00019589,3]
[349054444,1736955037072,-500.0,0.00019589,3]
[349054445,1736955037083,-500.0,0.00019589,3]
[349054446,1736955037098,-500.0,0.00019589,3]
[349054447,1736955037111,-591.45,0.00019589,3]
[349054448,1736955037125,-283.62,0.00019589,3]
[349054449,1736955037138,-500.0,0.00019589,3]
[349054450,1736955037156,-210.59,0.00019589,3]
[349054451,1736955037169,-568.33,0.00019589,3]
[349054452,1736955037182,-500.0,0.00019589,3]
[349054453,1736955037195,-500.0,0.00019589,3]
[349054454,1736955037207,-708.09,0.00019589,3]
[349054455,1736955037219,-1287.03,0.00019589,3]
[349054456,1736955037232,-500.0,0.00019589,3]
[349054457,1736955037246,-1050.48,0.00019589,3]
[349054458,1736955037258,-500.0,0.00019589,3]
[349054459,1736955037271,-500.0,0.00019589,3]
[349054460,1736955037284,-500.0,0.00019589,3]
[349054461,1736955037297,-500.0,0.00019589,3]
[349054462,1736955037310,-500.0,0.00019589,3]
[349054463,1736955037324,-500.0,0.00019589,3]
[349054464,1736955037336,-500.0,0.00019589,3]
[349054465,1736955037350,-500.0,0.00019589,3]
[349054466,1736955037363,-1811.3,0.00019589,3]
[349054467,1736955037378,-1354.01,0.00019589,3]
[349054468,1736955037391,-500.0,0.00019589,3]
[349054469,1736955037411,-500.0,0.00019589,3]
[349054470,1736955037424,-500.0,0.00019589,3]
[349054471,1736955037436,-500.0,0.00019589,3]
[349054472,1736955037448,-161.72,0.00019589,3]
[349054473,1736955037460,-207.49452004,0.00019589,3]
[349054480,1736955037572,-500.0,0.00019178,2]
[349054481,1736955037584,-500.0,0.00019315,3]
[349054484,1736955037596,-500.0,0.00019452,3]
[349054486,1736955037608,-344.73547996,0.00019589,3]
[349054487,1736955037619,-500.0,0.00019589,3]
[349054488,1736955037631,-500.0,0.00019589,3]
[349054489,1736955037643,-9443.06,0.00019589,3]
[349054490,1736955037661,-500.0,0.00019589,3]
[349054491,1736955037673,-500.0,0.00019589,3]
[349054502,1736955037800,-500.0,0.00019589,3]
[349054504,1736955037813,-500.0,0.00019589,3]
[349054506,1736955037823,-500.0,0.00019589,3]
[349054508,1736955037833,-649.74,0.00019589,3]
[349054510,1736955037843,-500.0,0.00019589,3]
[349054512,1736955037853,-500.0,0.00019589,3]
[349054514,1736955037863,-500.0,0.00019589,3]
[349054516,1736955037873,-271.072,0.00019671,2]
[349054518,1736955037883,-500.0,0.00019726,3]
[349054520,1736955037893,-500.0,0.00019726,3]
[349054522,1736955037910,-522.19,0.00019726,3]
[349054524,1736955037920,-500.0,0.00019726,3]
[349054526,1736955037931,-500.0,0.00019726,3]
[349054528,1736955037941,-210.0,0.00019726,3]
[349054530,1736955037951,-500.0,0.00019726,3]
[349054532,1736955037960,-500.0,0.00019726,3]
[349054534,1736955037970,-500.0,0.00019726,3]
[349054537,1736955037981,-500.0,0.00019726,3]
[349054539,1736955037991,-429.22434841,0.00019726,3]
[349054541,1736955038001,-500.0,0.00019726,3]
[349054542,1736955038011,-500.0,0.00019726,3]
[349054545,1736955038022,-7087.47,0.00019726,3]
[349054547,1736955038032,-500.0,0.00019726,3]
[349054549,1736955038042,-500.0,0.00019726,3]
[349054551,1736955038051,-500.0,0.00019726,3]
[349054553,1736955038061,-591.45,0.00019726,3]
[349054555,1736955038070,-500.0,0.00019726,3]
[349054557,1736955038080,-500.0,0.00019726,3]
[349054559,1736955038089,-708.09,0.00019726,3]
[349054561,1736955038099,-1287.03,0.00019726,3]
[349054563,1736955038109,-500.0,0.00019726,3]
[349054565,1736955038118,-1050.48,0.00019726,3]
[349054567,1736955038128,-500.0,0.00019726,3]
[349054569,1736955038137,-500.0,0.00019726,3]
[349054571,1736955038147,-500.0,0.00019726,3]
[349054573,1736955038162,-500.0,0.00019726,3]
[349054575,1736955038172,-500.0,0.00019726,3]
[349054577,1736955038181,-500.0,0.00019726,3]
[349054579,1736955038191,-500.0,0.00019726,3]
[349054581,1736955038200,-1811.3,0.00019726,3]
[349054583,1736955038210,-1354.01,0.00019726,3]
[349054585,1736955038219,-500.0,0.00019726,3]
[349054588,1736955038229,-500.0,0.00019726,3]
[349054590,1736955038238,-500.0,0.00019726,3]
[349054592,1736955038247,-500.0,0.00019726,3]
[349054595,1736955038257,-552.23,0.00019726,3]
[349054598,1736955038266,-500.0,0.00019726,3]
[349054600,1736955038275,-500.0,0.00019726,3]
[349054601,1736955038285,-9443.06,0.00019726,3]
[349054602,1736955038295,-239.4073367,0.00019726,3]
[349054603,1736955038305,-500.0,0.00019726,3]
[349054604,1736955038315,-500.0,0.00019726,3]
[349054605,1736955038329,-500.0,0.00019726,3]
[349054606,1736955038339,-500.0,0.00019726,3]
[349054607,1736955038348,-649.74,0.00019726,3]
[349054608,1736955038358,-500.0,0.00019726,3]
[349054609,1736955038371,-1062.15290894,0.00019739,2]
[349054610,1736955038381,-9109.55,0.000198,2]
[349054611,1736955038391,-151.0,0.000198,2]
[349054612,1736955038404,-372.72,0.00019863,3]
[349054614,1736955038414,-500.0,0.00019863,3]
[349054616,1736955038425,-531.63,0.00019863,3]
[349054617,1736955038434,-500.0,0.00019863,3]
[349054619,1736955038443,-500.0,0.00019863,3]
[349054621,1736955038453,-500.0,0.00019863,3]
[349054623,1736955038463,-335.29,0.00019863,3]
[349054626,1736955038473,-7087.47,0.00019863,3]
[349054627,1736955038483,-500.0,0.00019863,3]
[349054630,1736955038492,-500.0,0.00019863,3]
[349054632,1736955038502,-500.0,0.00019863,3]
[349054633,1736955038511,-591.45,0.00019863,3]
[349054636,1736955038521,-500.0,0.00019863,3]
[349054637,1736955038531,-500.0,0.00019863,3]
[349054639,1736955038541,-708.09,0.00019863,3]
[349054642,1736955038551,-1287.03,0.00019863,3]
[349054644,1736955038560,-619.41,0.00019863,3]
[349054646,1736955038570,-1050.48,0.00019863,3]
[349054648,1736955038580,-500.0,0.00019863,3]
[349054650,1736955038589,-500.0,0.00019863,3]
[349054652,1736955038599,-500.0,0.00019863,3]
[349054654,1736955038609,-500.0,0.00019863,3]
[349054656,1736955038619,-1811.3,0.00019863,3]
[349054658,1736955038628,-1354.01,0.00019863,3]
[349054660,1736955038638,-500.0,0.00019863,3]
[349054662,1736955038648,-500.0,0.00019863,3]
[349054664,1736955038662,-500.0,0.00019863,3]
[349054666,1736955038671,-552.23,0.00019863,3]
[349054668,1736955038681,-500.0,0.00019863,3]
[349054670,1736955038690,-480.36,0.00019863,3]
[349054672,1736955038703,-9443.06,0.00019863,3]
[349054673,1736955038714,-500.0,0.00019863,3]
[349054675,1736955038724,-500.0,0.00019863,3]
[349054677,1736955038734,-500.0,0.00019863,3]
[349054678,1736955038743,-500.0,0.00019863,3]
[349054680,1736955038753,-649.74,0.00019863,3]
[349054682,1736955038762,-500.0,0.00019863,3]
[349054684,1736955038771,-161.11974132,0.0001988,2]
[349054686,1736955038781,-1898.77952697,0.000199,2]
[349054688,1736955038791,-429.34638795,0.00019973,2]
[349054690,1736955038801,-500.0,0.00019973,2]
[349054692,1736955038811,-500.0,0.00019973,2]
[349054694,1736955038821,-227.71716312,0.00019973,2]
[349054696,1736955038831,-693.0,0.0002,3]
[349054698,1736955038841,-692.0,0.0002,3]
[349054700,1736955038850,-692.0,0.0002,3]
[349054702,1736955038860,-692.0,0.0002,3]
[349054704,1736955038870,-500.0,0.0002,3]
[349054706,1736955038879,-508.38,0.0002,3]
[349054708,1736955038889,-324.23,0.0002,3]
[349054710,1736955038898,-379.92,0.0002,3]
[349054712,1736955038913,-7087.47,0.0002,3]
[349054714,1736955038923,-500.0,0.0002,3]
[349054715,1736955038933,-500.0,0.0002,3]
[349054717,1736955038943,-332.88,0.0002,3]
[349054719,1736955038955,-591.45,0.0002,3]
[349054721,1736955038964,-500.0,0.0002,3]
[349054723,1736955038974,-500.0,0.0002,3]
[349054725,1736955038983,-708.09,0.0002,3]
[349054727,1736955038993,-1287.03,0.0002,3]
[349054728,1736955039003,-1050.48,0.0002,3]
[349054730,1736955039013,-500.0,0.0002,3]
[349054732,1736955039023,-8717.33997825,0.0002,2]
[349054734,1736955039033,-4011.3517118,0.0002,2]
[349054735,1736955039042,-15455.25780468,0.0002,2]
[349054737,1736955039051,-199.38507206,0.0002,2]
[349054739,1736955039061,-332777.20798357,0.0002,5]
[349054741,1736955039071,-500.0,0.0002,3]
[349054742,1736955039080,-500.0,0.0002,3]
[349054744,1736955039089,-1811.3,0.0002,3]
[349054746,1736955039099,-2456.56,0.0002,2]
[349054747,1736955039108,-1354.01,0.0002,3]
[349054749,1736955039116,-500.0,0.0002,3]
[349054751,1736955039125,-500.0,0.0002,3]
[349054752,1736955039134,-500.0,0.0002,3]
[349054753,1736955039144,-552.23,0.0002,3]
[349054755,1736955039155,-500.0,0.0002,3]
[349054757,1736955039164,-9443.06,0.0002,3]
[349054759,1736955039174,-500.0,0.0002,3]
[349054760,1736955039183,-362.41969437,0.0002,3]
[349054762,1736955039193,-500.0,0.0002,3]
[349054764,1736955039203,-649.74,0.0002,3]
[349054766,1736955039213,-500.0,0.0002,3]
[349054767,1736955039222,-1000.0,0.00020021,2]
[349054769,1736955039232,-1898.77952683,0.00020038,2]
[349054771,1736955039241,-256.88,0.00020136,3]
[349054772,1736955039251,-7087.47,0.00020136,3]
[349054774,1736955039260,-500.0,0.00020136,3]
[349054776,1736955039270,-500.0,0.00020136,3]
[349054777,1736955039279,-591.45,0.00020136,3]
[349054779,1736955039289,-500.0,0.00020136,3]
[349054780,1736955039298,-606.41,0.00020136,3]
[349054782,1736955039308,-708.09,0.00020136,3]
[349054784,1736955039318,-1287.03,0.00020136,3]
[349054786,1736955039329,-1050.48,0.00020136,3]
[349054787,1736955039340,-634.99,0.00020136,3]
[349054788,1736955039355,-500.0,0.00020136,3]
[349054789,1736955039365,-500.0,0.00020136,3]
[349054790,1736955039375,-1811.3,0.00020136,3]
[349054791,1736955039385,-1354.01,0.00020136,3]
[349054792,1736955039395,-500.0,0.00020136,3]
[349054794,1736955039408,-500.0,0.00020136,3]
[349054795,1736955039418,-500.0,0.00020136,3]
[349054796,1736955039429,-552.23,0.00020136,3]
[349054797,1736955039439,-500.0,0.00020136,3]
[349054798,1736955039449,-9443.06,0.00020136,3]
[349054799,1736955039459,-152.62,0.00020136,3]
[349054800,1736955039468,-500.0,0.00020136,3]
[349054801,1736955039478,-649.74,0.00020136,3]
[349054802,1736955039489,-500.0,0.00020136,3]
[349054804,1736955039500,-1898.77952683,0.00020176,2]
[349054805,1736955039509,-151.0,0.000202,3]
[349054806,1736955039522,-7087.47,0.00020273,3]
[349054807,1736955039531,-500.0,0.00020273,3]
[349054808,1736955039541,-500.0,0.00020273,3]
[349054809,1736955039551,-591.45,0.00020273,3]
[349054810,1736955039560,-500.0,0.00020273,3]
[349054811,1736955039571,-708.09,0.00020273,3]
[349054812,1736955039581,-1287.03,0.00020273,3]
[349054813,1736955039591,-1050.48,0.00020273,3]
[349054814,1736955039601,-500.0,0.00020273,3]
[349054815,1736955039611,-500.0,0.00020273,3]
[349054816,1736955039622,-1811.3,0.00020273,3]
[349054818,1736955039631,-1354.01,0.00020273,3]
[349054821,1736955039641,-500.0,0.00020273,3]
[349054822,1736955039655,-319.45,0.00020273,3]
[349054824,1736955039665,-500.0,0.00020273,3]
[349054826,1736955039676,-500.0,0.00020273,3]
[349054828,1736955039686,-552.23,0.00020273,3]
[349054829,1736955039697,-9443.06,0.00020273,3]
[349054831,1736955039710,-500.0,0.00020273,3]
[349054832,1736955039720,-649.74,0.00020273,3]
[349054833,1736955039730,-500.0,0.00020273,3]
[349054834,1736955039740,-1898.77952683,0.00020314,2]
[349054835,1736955039750,-7087.47,0.0002041,3]
[349054836,1736955039760,-500.0,0.0002041,3]
[349054837,1736955039769,-500.0,0.0002041,3]
[349054838,1736955039779,-591.45,0.0002041,3]
[349054839,1736955039788,-364.42,0.0002041,3]
[349054840,1736955039797,-708.09,0.0002041,3]
[349054841,1736955039807,-1287.03,0.0002041,3]
[349054842,1736955039817,-1050.48,0.0002041,3]
[349054843,1736955039827,-500.0,0.0002041,3]
[349054844,1736955039836,-500.0,0.0002041,3]
[349054845,1736955039846,-1811.3,0.0002041,3]
[349054846,1736955039855,-1354.01,0.0002041,3]
[349054847,1736955039865,-500.0,0.0002041,3]
[349054848,1736955039875,-508.66,0.0002041,3]
[349054849,1736955039884,-552.23,0.0002041,3]
[349054850,1736955039894,-500.0,0.0002041,3]
[349054852,1736955039907,-9443.06,0.0002041,3]
[349054853,1736955039916,-190.84,0.0002041,3]
[349054858,1736955040005,-649.74,0.0002041,3]
[349054860,1736955040016,-500.0,0.0002041,3]
[349054862,1736955040027,-1898.77952683,0.00020452,2]
[349054863,1736955040037,-4701.49,0.000205,2]
[349054864,1736955040047,-209.473462,0.00020521,2]
[349054865,1736955040058,-1000.0,0.00020521,2]
[349054866,1736955040068,-1000.0,0.00020521,2]
[349054867,1736955040079,-1009.70065498,0.00020547,2]
[349054868,1736955040089,-7087.47,0.00020547,3]
[349054869,1736955040098,-500.0,0.00020547,3]
[349054870,1736955040108,-315.14,0.00020547,3]
[349054871,1736955040119,-591.45,0.00020547,3]
[349054872,1736955040129,-708.09,0.00020547,3]
[349054873,1736955040141,-1287.03,0.00020547,3]
[349054874,1736955040151,-1050.48,0.00020547,3]
[349054875,1736955040167,-500.0,0.00020547,3]
[349054876,1736955040178,-500.0,0.00020547,3]
[349054878,1736955040189,-1811.3,0.00020547,3]
[349054880,1736955040200,-1354.01,0.00020547,3]
[349054882,1736955040214,-500.0,0.00020547,3]
[349054884,1736955040225,-500.0,0.00020547,3]
[349054886,1736955040235,-552.23,0.00020547,3]
[349054888,1736955040247,-9443.06,0.00020547,3]
[349054890,1736955040257,-649.74,0.00020547,3]
[349054892,1736955040267,-428.2,0.00020547,3]
[349054894,1736955040278,-1898.77952683,0.0002059,2]
[349054896,1736955040289,-161.11974132,0.00020682,2]
[349054898,1736955040300,-7087.47,0.00020684,3]
[349054900,1736955040310,-500.0,0.00020684,3]
[349054902,1736955040320,-591.45,0.00020684,3]
[349054904,1736955040335,-708.09,0.00020684,3]
[349054906,1736955040344,-1287.03,0.00020684,3]
[349054908,1736955040354,-1050.48,0.00020684,3]
[349054910,1736955040364,-500.0,0.00020684,3]
[349054912,1736955040375,-500.0,0.00020684,3]
[349054914,1736955040384,-1811.3,0.00020684,3]
[349054916,1736955040394,-1354.01,0.00020684,3]
[349054918,1736955040407,-588.04,0.00020684,3]
[349054920,1736955040419,-516.04,0.00020684,3]
[349054922,1736955040429,-552.23,0.00020684,3]
[349054924,1736955040439,-9443.06,0.00020684,3]
[349054926,1736955040450,-649.74,0.00020684,3]
[349054928,1736955040460,-151.0,0.000207,4]
[349054930,1736955040469,-1898.77952683,0.00020728,2]
[349054932,1736955040479,-7087.47,0.00020821,3]
[349054934,1736955040489,-500.0,0.00020821,3]
[349054936,1736955040498,-591.45,0.00020821,3]
[349054938,1736955040508,-708.09,0.00020821,3]
[349054940,1736955040517,-1287.03,0.00020821,3]
[349054942,1736955040528,-1050.48,0.00020821,3]
[349054944,1736955040537,-500.0,0.00020821,3]
[349054946,1736955040547,-500.0,0.00020821,3]
[349054948,1736955040556,-1811.3,0.00020821,3]
[349054950,1736955040566,-1354.01,0.00020821,3]
[349054952,1736955040576,-552.23,0.00020821,3]
[349054953,1736955040585,-9443.06,0.00020821,3]
[349054954,1736955040595,-649.74,0.00020821,3]
[349054955,1736955040604,-1898.77952683,0.00020866,2]
[349054956,1736955040613,-420.0,0.00020899,2]
[349054957,1736955040622,-7087.47,0.00020958,3]
[349054958,1736955040631,-293.23203439,0.00020958,3]
[349054959,1736955040641,-591.45,0.00020958,3]
[349054960,1736955040651,-708.09,0.00020958,3]
[349054961,1736955040664,-1287.03,0.00020958,3]
[349054962,1736955040673,-1050.48,0.00020958,3]
[349054963,1736955040682,-500.0,0.00020958,3]
[349054964,1736955040692,-500.0,0.00020958,3]
[349054965,1736955040703,-1811.3,0.00020958,3]
[349054966,1736955040713,-1354.01,0.00020958,3]
[349054967,1736955040722,-552.23,0.00020958,3]
[349054968,1736955040732,-9443.06,0.00020958,3]
[349054969,1736955040741,-649.74,0.00020958,3]
[349054971,1736955040751,-706.62395626,0.00021,2]
[349054974,1736955040760,-1898.77952683,0.00021003,2]
[349054977,1736955040770,-500.0,0.00021022,2]
[349054980,1736955040779,-500.0,0.0002103,2]
[349054982,1736955040788,-500.0,0.0002103,2]
[349054984,1736955040798,-500.0,0.0002103,2]
[349054986,1736955040808,-503.94370734,0.0002103,2]
[349054988,1736955040818,-393.787,0.0002108,2]
[349054990,1736955040827,-7087.47,0.00021095,3]
[349054992,1736955040837,-591.45,0.00021095,3]
[349054994,1736955040847,-708.09,0.00021095,3]
[349054996,1736955040857,-1287.03,0.00021095,3]
[349054998,1736955040867,-1050.48,0.00021095,3]
[349055000,1736955040877,-500.0,0.00021095,3]
[349055002,1736955040886,-500.0,0.00021095,3]
[349055004,1736955040896,-1811.3,0.00021095,3]
[349055006,1736955040909,-1354.01,0.00021095,3]
[349055008,1736955040919,-552.23,0.00021095,3]
[349055010,1736955040928,-9443.06,0.00021095,3]
[349055012,1736955040937,-649.74,0.00021095,3]
[349055014,1736955040947,-209.473462,0.00021096,2]
[349055016,1736955040956,-1898.77952683,0.00021141,2]
[349055018,1736955040966,-472.4886748,0.00021171,2]
[349055020,1736955040976,-151.0,0.000212,4]
[349055022,1736955040986,-7087.47,0.00021232,3]
[349055024,1736955040995,-591.45,0.00021232,3]
[349055026,1736955041005,-708.09,0.00021232,3]
[349055028,1736955041015,-1287.03,0.00021232,3]
[349055030,1736955041025,-1050.48,0.00021232,3]
[349055032,1736955041034,-500.0,0.00021232,3]
[349055034,1736955041045,-599.38849227,0.00021232,3]
[349055036,1736955041054,-1811.3,0.00021232,3]
[349055038,1736955041063,-1354.01,0.00021232,3]
[349055040,1736955041073,-552.23,0.00021232,3]
[349055042,1736955041083,-9443.06,0.00021232,3]
[349055044,1736955041092,-649.74,0.00021232,3]
[349055046,1736955041102,-1898.77952683,0.00021279,2]
[349055048,1736955041111,-7087.47,0.00021369,3]
[349055050,1736955041121,-591.45,0.00021369,3]
[349055052,1736955041131,-708.09,0.00021369,3]
[349055054,1736955041141,-1287.03,0.00021369,3]
[349055056,1736955041151,-1050.48,0.00021369,3]
[349055058,1736955041166,-547.47,0.00021369,3]
[349055060,1736955041176,-1811.3,0.00021369,3]
[349055062,1736955041185,-1354.01,0.00021369,3]
[349055064,1736955041194,-552.23,0.00021369,3]
[349055066,1736955041203,-9443.06,0.00021369,3]